[Event "Estonian Chess Championship 2022"]
[Site "Tallinn, Paul Keres Chess House, Estonia"]
[Date "2022.12.12"]
[Round "3.4"]
[White "Sirosh, Ilja"]
[Black "Timoshin, Andrei"]
[Result "1/2-1/2"]
[TimeControl "90 minutes for first 40 moves and 15 min. for the rest of the game with 30 sec. increment from move 1"]
[WhiteTitle "IM"]
[WhiteFideId "4500458"]
[BlackFideId "4503503"]
[WhiteElo "2386"]
[BlackElo "2179"]

1. e4 {

[%clk 01:30:57]

} {

[%emt 00:00:02]

} e5 {

[%clk 01:30:05]

} {

[%emt 00:00:55]

} 2. Nf3 {

[%clk 01:31:21]

} {

[%emt 00:00:06]

} Nf6 {

[%clk 01:29:58]

} {

[%emt 00:00:38]

} 3. Nc3 {

[%clk 01:31:45]

} {

[%emt 00:00:07]

} Bb4 {

[%clk 01:29:19]

} {

[%emt 00:01:09]

} 4. Nxe5 {

[%clk 01:32:05]

} {

[%emt 00:00:09]

} O-O {

[%clk 01:29:22]

} {

[%emt 00:00:27]

} 5. Be2 {

[%clk 01:32:22]

} {

[%emt 00:00:13]

} Re8 {

[%clk 01:29:08]

} {

[%emt 00:00:43]

} 6. Nd3 {

[%clk 01:32:32]

} {

[%emt 00:00:20]

} Bxc3 {

[%clk 01:29:02]

} {

[%emt 00:00:36]

} 7. dxc3 {

[%clk 01:32:56]

} {

[%emt 00:00:06]

} Nxe4 {

[%clk 01:28:59]

} {

[%emt 00:00:33]

} 8. O-O {

[%clk 01:33:18]

} {

[%emt 00:00:07]

} d6 {

[%clk 01:27:01]

} {

[%emt 00:02:28]

} 9. Re1 {

[%clk 01:28:55]

} {

[%emt 00:04:52]

} Nc6 {

[%clk 01:22:07]

} {

[%emt 00:05:25]

} 10. f3 {

[%clk 01:24:55]

} {

[%emt 00:04:30]

} Nf6 {

[%clk 01:10:23]

} {

[%emt 00:12:14]

} 11. Bg5 {

[%clk 01:24:40]

} {

[%emt 00:00:45]

} h6 {

[%clk 01:10:48]

} {

[%emt 00:00:06]

} 12. Bh4 {

[%clk 01:24:45]

} {

[%emt 00:00:24]

} Bf5 {

[%clk 01:10:54]

} {

[%emt 00:00:24]

} 13. Bf1 {

[%clk 01:12:52]

} {

[%emt 00:12:22]

} Ne5 {

[%clk 01:10:33]

} {

[%emt 00:00:52]

} 14. b3 {

[%clk 01:06:43]

} {

[%emt 00:06:39]

} Ng6 {

[%clk 01:09:14]

} {

[%emt 00:01:49]

} 15. Bf2 {

[%clk 00:51:35]

} {

[%emt 00:15:38]

} c5 {

[%clk 00:42:11]

} {

[%emt 00:27:33]

} 16. Rxe8+ {

[%clk 00:41:13]

} {

[%emt 00:10:53]

} Qxe8 {

[%clk 00:41:27]

} {

[%emt 00:01:13]

} 17. Qd2 {

[%clk 00:41:20]

} {

[%emt 00:00:23]

} b6 {

[%clk 00:40:27]

} {

[%emt 00:01:31]

} 18. a4 {

[%clk 00:35:44]

} {

[%emt 00:06:05]

} Qc6 {

[%clk 00:34:16]

} {

[%emt 00:06:41]

} 19. Re1 {

[%clk 00:28:10]

} {

[%emt 00:08:03]

} Rd8 {

[%clk 00:32:15]

} {

[%emt 00:02:32]

} 20. a5 {

[%clk 00:21:24]

} {

[%emt 00:07:16]

} Qc7 {

[%clk 00:20:13]

} {

[%emt 00:12:32]

} 21. axb6 {

[%clk 00:18:51]

} {

[%emt 00:03:04]

} axb6 {

[%clk 00:20:41]

} {

[%emt 00:00:02]

} 22. Ra1 {

[%clk 00:19:08]

} {

[%emt 00:00:12]

} Qb7 {

[%clk 00:16:41]

} {

[%emt 00:04:30]

} 23. Ra2 {

[%clk 00:13:43]

} {

[%emt 00:05:54]

} Ra8 {

[%clk 00:15:21]

} {

[%emt 00:01:51]

} 24. Rxa8+ {

[%clk 00:14:06]

} {

[%emt 00:00:07]

} Qxa8 {

[%clk 00:15:50]

} 25. Nf4 {

[%clk 00:13:29]

} {

[%emt 00:01:07]

} Nxf4 {

[%clk 00:15:30]

} {

[%emt 00:00:50]

} 26. Qxf4 {

[%clk 00:13:57]

} {

[%emt 00:00:02]

} Bxc2 {

[%clk 00:15:07]

} {

[%emt 00:00:54]

} 27. Qxd6 {

[%clk 00:14:21]

} {

[%emt 00:00:06]

} Qa1 {

[%clk 00:14:46]

} {

[%emt 00:00:51]

} 28. Qxb6 {

[%clk 00:13:21]

} {

[%emt 00:01:30]

} Qxc3 {

[%clk 00:14:45]

} {

[%emt 00:00:31]

} 29. Qxc5 {

[%clk 00:12:16]

} {

[%emt 00:01:35]

} Qxc5 {

[%clk 00:15:00]

} {

[%emt 00:00:15]

} 30. Bxc5 {

[%clk 00:12:42]

} {

[%emt 00:00:04]

} Bxb3 {

[%clk 00:15:24]

} {

[%emt 00:00:07]

} 31. g4 {

[%clk 00:12:27]

} {

[%emt 00:00:45]

} g5 {

[%clk 00:11:30]

} {

[%emt 00:04:24]

} 32. Kf2 {

[%clk 00:11:23]

} {

[%emt 00:01:34]

} Nd5 {

[%clk 00:09:05]

} {

[%emt 00:02:55]

} 33. Kg3 {

[%clk 00:11:24]

} {

[%emt 00:00:29]

} Nf4 {

[%clk 00:08:16]

} {

[%emt 00:01:19]

} 34. h4 {

[%clk 00:11:17]

} {

[%emt 00:00:38]

} Ne6 {

[%clk 00:08:40]

} {

[%emt 00:00:06]

} 35. Be3 {

[%clk 00:11:41]

} {

[%emt 00:00:05]

} Bd5 {

[%clk 00:08:37]

} {

[%emt 00:00:33]

} 36. h5 {

[%clk 00:10:54]

} {

[%emt 00:01:18]

} f5 {

[%clk 00:05:35]

} {

[%emt 00:03:32]

} 37. gxf5 {

[%clk 00:09:48]

} {

[%emt 00:01:36]

} Ng7 {

[%clk 00:06:05]

} 38. Kg4 {

[%clk 00:09:48]

} {

[%emt 00:00:31]

} Bf7 {

[%clk 00:06:33]

} {

[%emt 00:00:02]

} 39. Bd3 {

[%clk 00:08:32]

} {

[%emt 00:01:45]

} 1/2-1/2

[Event "Estonian Chess Championship 2022"]
[Site "Tallinn, Paul Keres Chess House, Estonia"]
[Date "2022.12.12"]
[Round "3.5"]
[White "Kulaots, Kaido"]
[Black "Soot, Margus"]
[Result "1-0"]
[TimeControl "90 minutes for first 40 moves and 15 min. for the rest of the game with 30 sec. increment from move 1"]
[WhiteTitle "GM"]
[WhiteFideId "4500261"]
[BlackFideId "4501160"]
[WhiteElo "2513"]
[BlackElo "2121"]

1. e4 {

[%clk 01:30:46]

} {

[%emt 00:00:11]

} c5 {

[%clk 01:30:00]

} {

[%emt 00:01:01]

} 2. Nf3 {

[%clk 01:31:08]

} {

[%emt 00:00:08]

} Nc6 {

[%clk 01:29:55]

} {

[%emt 00:00:36]

} 3. d4 {

[%clk 01:30:49]

} {

[%emt 00:00:48]

} cxd4 {

[%clk 01:27:44]

} {

[%emt 00:02:41]

} 4. Nxd4 {

[%clk 01:31:14]

} {

[%emt 00:00:05]

} e5 {

[%clk 01:27:25]

} {

[%emt 00:00:50]

} 5. Nb5 {

[%clk 01:31:25]

} {

[%emt 00:00:19]

} d6 {

[%clk 01:27:46]

} {

[%emt 00:00:09]

} 6. N1c3 {

[%clk 01:31:34]

} {

[%emt 00:00:20]

} a6 {

[%clk 01:28:10]

} {

[%emt 00:00:07]

} 7. Na3 {

[%clk 01:32:01]

} {

[%emt 00:00:03]

} b5 {

[%clk 01:28:07]

} {

[%emt 00:00:34]

} 8. Nd5 {

[%clk 01:32:08]

} {

[%emt 00:00:23]

} Nf6 {

[%clk 01:28:17]

} {

[%emt 00:00:20]

} 9. Nxf6+ {

[%clk 01:30:04]

} {

[%emt 00:02:34]

} gxf6 {

[%clk 01:23:25]

} {

[%emt 00:05:23]

} 10. c4 {

[%clk 01:23:28]

} {

[%emt 00:07:05]

} b4 {

[%clk 01:21:24]

} {

[%emt 00:02:31]

} 11. Nc2 {

[%clk 01:23:53]

} {

[%emt 00:00:04]

} f5 {

[%clk 01:21:40]

} {

[%emt 00:00:14]

} 12. exf5 {

[%clk 01:23:32]

} {

[%emt 00:00:51]

} Bxf5 {

[%clk 01:17:23]

} {

[%emt 00:04:48]

} 13. Ne3 {

[%clk 01:22:40]

} {

[%emt 00:01:22]

} Be6 {

[%clk 01:00:38]

} {

[%emt 00:17:15]

} 14. Bd3 {

[%clk 01:20:46]

} {

[%emt 00:02:24]

} Nd4 {

[%clk 00:51:17]

} {

[%emt 00:09:52]

} 15. O-O {

[%clk 01:19:15]

} {

[%emt 00:01:59]

} Bg7 {

[%clk 00:49:40]

} {

[%emt 00:02:09]

} 16. Qh5 {

[%clk 01:13:11]

} {

[%emt 00:06:33]

} h6 {

[%clk 00:43:52]

} {

[%emt 00:06:18]

} 17. Nd5 {

[%clk 01:02:04]

} {

[%emt 00:11:37]

} O-O {

[%clk 00:41:44]

} {

[%emt 00:02:38]

} 18. Bxh6 {

[%clk 00:58:39]

} {

[%emt 00:03:54]

} f5 {

[%clk 00:42:04]

} {

[%emt 00:00:11]

} 19. Bg5 {

[%clk 00:58:03]

} {

[%emt 00:01:05]

} Bf7 {

[%clk 00:41:24]

} {

[%emt 00:01:10]

} 20. Qh4 {

[%clk 00:58:11]

} {

[%emt 00:00:22]

} 1-0

[Event "Estonian Chess Championship 2022"]
[Site "Tallinn, Paul Keres Chess House, Estonia"]
[Date "2022.12.13"]
[Round "4.1"]
[White "Kanep, Meelis"]
[Black "Soot, Margus"]
[Result "1-0"]
[TimeControl "90 minutes for first 40 moves and 15 min. for the rest of the game with 30 sec. increment from move 1"]
[WhiteTitle "GM"]
[WhiteFideId "4501047"]
[BlackFideId "4501160"]
[WhiteElo "2412"]
[BlackElo "2121"]

1. d4 {

[%clk 01:30:53]

} {

[%emt 00:00:06]

} d5 {

[%clk 01:30:07]

} {

[%emt 00:00:53]

} 2. c4 {

[%clk 01:30:52]

} {

[%emt 00:00:31]

} e6 {

[%clk 01:30:33]

} {

[%emt 00:00:04]

} 3. Nf3 {

[%clk 01:30:52]

} {

[%emt 00:00:30]

} Ne7 {

[%clk 01:30:57]

} {

[%emt 00:00:06]

} 4. Nc3 {

[%clk 01:30:24]

} {

[%emt 00:00:57]

} Nbc6 {

[%clk 01:31:13]

} {

[%emt 00:00:15]

} 5. e3 {

[%clk 01:22:30]

} {

[%emt 00:08:24]

} g6 {

[%clk 01:29:27]

} {

[%emt 00:02:16]

} 6. h4 {

[%clk 01:14:42]

} {

[%emt 00:08:18]

} h5 {

[%clk 01:29:46]

} {

[%emt 00:00:11]

} 7. g3 {

[%clk 00:56:36]

} {

[%emt 00:18:36]

} Bg7 {

[%clk 01:24:08]

} {

[%emt 00:06:07]

} 8. Bg2 {

[%clk 00:50:15]

} {

[%emt 00:06:52]

} b6 {

[%clk 01:21:52]

} {

[%emt 00:02:46]

} 9. O-O {

[%clk 00:45:39]

} {

[%emt 00:05:05]

} O-O {

[%clk 01:22:08]

} {

[%emt 00:00:14]

} 10. b3 {

[%clk 00:41:42]

} {

[%emt 00:04:27]

} Bb7 {

[%clk 01:22:20]

} {

[%emt 00:00:18]

} 11. Ba3 {

[%clk 00:41:30]

} {

[%emt 00:00:42]

} Qd7 {

[%clk 01:12:38]

} {

[%emt 00:10:11]

} 12. Rc1 {

[%clk 00:40:44]

} {

[%emt 00:01:17]

} Rfd8 {

[%clk 01:12:44]

} {

[%emt 00:00:24]

} 13. cxd5 {

[%clk 00:39:09]

} {

[%emt 00:02:05]

} exd5 {

[%clk 01:11:19]

} {

[%emt 00:01:54]

} 14. Ng5 {

[%clk 00:39:08]

} {

[%emt 00:00:31]

} f6 {

[%clk 01:08:34]

} {

[%emt 00:03:15]

} 15. Nh3 {

[%clk 00:35:34]

} {

[%emt 00:04:03]

} a5 {

[%clk 01:08:28]

} {

[%emt 00:00:37]

} 16. Nf4 {

[%clk 00:35:05]

} {

[%emt 00:00:59]

} Nb4 {

[%clk 01:08:52]

} {

[%emt 00:00:07]

} 17. Qd2 {

[%clk 00:32:48]

} {

[%emt 00:02:46]

} Bf8 {

[%clk 00:59:12]

} {

[%emt 00:10:11]

} 18. Bxb4 {

[%clk 00:29:49]

} {

[%emt 00:03:29]

} axb4 {

[%clk 00:59:26]

} {

[%emt 00:00:16]

} 19. Na4 {

[%clk 00:30:11]

} {

[%emt 00:00:07]

} Bc6 {

[%clk 00:55:46]

} {

[%emt 00:04:10]

} 20. Qxb4 {

[%clk 00:27:30]

} {

[%emt 00:03:11]

} Bxa4 {

[%clk 00:55:48]

} {

[%emt 00:00:27]

} 21. bxa4 {

[%clk 00:27:54]

} {

[%emt 00:00:07]

} Rxa4 {

[%clk 00:54:28]

} {

[%emt 00:01:50]

} 22. Qb3 {

[%clk 00:28:01]

} {

[%emt 00:00:22]

} Ra5 {

[%clk 00:54:37]

} {

[%emt 00:00:22]

} 23. Qc2 {

[%clk 00:26:26]

} {

[%emt 00:02:04]

} f5 {

[%clk 00:48:59]

} {

[%emt 00:06:07]

} 24. Qxc7 {

[%clk 00:26:22]

} {

[%emt 00:00:34]

} Qxc7 {

[%clk 00:45:02]

} {

[%emt 00:04:27]

} 25. Rxc7 {

[%clk 00:26:50]

} {

[%emt 00:00:02]

} Rd6 {

[%clk 00:45:24]

} {

[%emt 00:00:09]

} 26. Rfc1 {

[%clk 00:25:57]

} {

[%emt 00:01:22]

} Kf7 {

[%clk 00:45:47]

} {

[%emt 00:00:06]

} 27. Rb7 {

[%clk 00:22:52]

} {

[%emt 00:03:36]

} Kf6 {

[%clk 00:45:57]

} {

[%emt 00:00:21]

} 28. Rcc7 {

[%clk 00:21:35]

} {

[%emt 00:01:47]

} Rb5 {

[%clk 00:45:59]

} {

[%emt 00:00:29]

} 29. Bf3 {

[%clk 00:19:58]

} {

[%emt 00:02:06]

} Bh6 {

[%clk 00:45:30]

} {

[%emt 00:00:59]

} 30. Rxe7 {

[%clk 00:20:03]

} {

[%emt 00:00:24]

} Bxf4 {

[%clk 00:45:58]

} {

[%emt 00:00:02]

} 31. Rf7+ {

[%clk 00:20:22]

} {

[%emt 00:00:11]

} Ke6 {

[%clk 00:46:27]

} {

[%emt 00:00:01]

} 32. Rbe7# {

[%clk 00:20:43]

} {

[%emt 00:00:08]

} 1-0

[Event "Estonian Chess Championship 2022"]
[Site "Tallinn, Paul Keres Chess House, Estonia"]
[Date "2022.12.13"]
[Round "4.2"]
[White "Timoshin, Andrei"]
[Black "Kulaots, Kaido"]
[Result "1/2-1/2"]
[TimeControl "90 minutes for first 40 moves and 15 min. for the rest of the game with 30 sec. increment from move 1"]
[BlackTitle "GM"]
[WhiteFideId "4503503"]
[BlackFideId "4500261"]
[WhiteElo "2179"]
[BlackElo "2513"]

1. e4 {

[%clk 01:30:49]

} {

[%emt 00:00:10]

} c5 {

[%clk 01:30:27]

} {

[%emt 00:00:33]

} 2. c3 {

[%clk 01:30:42]

} {

[%emt 00:00:38]

} Nf6 {

[%clk 01:30:28]

} {

[%emt 00:00:29]

} 3. e5 {

[%clk 01:31:01]

} {

[%emt 00:00:11]

} Nd5 {

[%clk 01:30:54]

} {

[%emt 00:00:04]

} 4. d4 {

[%clk 01:31:24]

} {

[%emt 00:00:09]

} cxd4 {

[%clk 01:30:10]

} {

[%emt 00:01:13]

} 5. Nf3 {

[%clk 01:31:42]

} {

[%emt 00:00:11]

} Nc6 {

[%clk 01:30:34]

} {

[%emt 00:00:05]

} 6. cxd4 {

[%clk 01:32:04]

} {

[%emt 00:00:08]

} d6 {

[%clk 01:30:59]

} {

[%emt 00:00:05]

} 7. Bc4 {

[%clk 01:32:27]

} {

[%emt 00:00:07]

} dxe5 {

[%clk 01:29:08]

} {

[%emt 00:02:21]

} 8. Bxd5 {

[%clk 01:14:56]

} {

[%emt 00:18:01]

} Qxd5 {

[%clk 01:29:32]

} {

[%emt 00:00:05]

} 9. Nc3 {

[%clk 01:15:21]

} {

[%emt 00:00:06]

} Qd6 {

[%clk 01:28:59]

} {

[%emt 00:01:03]

} 10. d5 {

[%clk 01:15:35]

} {

[%emt 00:00:16]

} Nd4 {

[%clk 01:29:08]

} {

[%emt 00:00:21]

} 11. Nxd4 {

[%clk 01:15:13]

} {

[%emt 00:00:52]

} exd4 {

[%clk 01:29:32]

} {

[%emt 00:00:05]

} 12. Qxd4 {

[%clk 01:15:29]

} {

[%emt 00:00:14]

} e5 {

[%clk 01:29:51]

} {

[%emt 00:00:11]

} 13. Qd3 {

[%clk 01:10:33]

} {

[%emt 00:05:27]

} Bd7 {

[%clk 01:27:45]

} {

[%emt 00:02:35]

} 14. O-O {

[%clk 01:09:01]

} {

[%emt 00:02:03]

} Qg6 {

[%clk 01:27:30]

} {

[%emt 00:00:45]

} 15. Qe2 {

[%clk 01:02:52]

} {

[%emt 00:06:39]

} Bd6 {

[%clk 01:27:36]

} {

[%emt 00:00:22]

} 16. f4 {

[%clk 01:01:17]

} {

[%emt 00:02:07]

} O-O {

[%clk 01:27:42]

} {

[%emt 00:00:24]

} 17. fxe5 {

[%clk 01:01:22]

} {

[%emt 00:00:26]

} Rae8 {

[%clk 01:28:04]

} {

[%emt 00:00:08]

} 18. Bf4 {

[%clk 01:00:46]

} {

[%emt 00:01:06]

} Bxe5 {

[%clk 01:28:11]

} {

[%emt 00:00:22]

} 19. Bxe5 {

[%clk 01:00:58]

} {

[%emt 00:00:18]

} f6 {

[%clk 01:28:36]

} {

[%emt 00:00:05]

} 20. Rae1 {

[%clk 00:38:42]

} {

[%emt 00:22:45]

} Rxe5 {

[%clk 01:27:27]

} {

[%emt 00:01:40]

} 21. Qf2 {

[%clk 00:39:11]

} Rfe8 {

[%clk 00:53:09]

} {

[%emt 00:34:49]

} 22. Rxe5 {

[%clk 00:38:44]

} {

[%emt 00:00:57]

} Rxe5 {

[%clk 00:51:32]

} {

[%emt 00:02:06]

} 23. Qxa7 {

[%clk 00:39:05]

} {

[%emt 00:00:10]

} Bh3 {

[%clk 00:47:11]

} {

[%emt 00:04:50]

} 24. Qb8+ {

[%clk 00:39:27]

} {

[%emt 00:00:08]

} Kf7 {

[%clk 00:46:55]

} {

[%emt 00:00:46]

} 25. Qc7+ {

[%clk 00:39:19]

} {

[%emt 00:00:39]

} Kg8 {

[%clk 00:44:44]

} {

[%emt 00:02:41]

} 26. Qb8+ {

[%clk 00:39:46]

} {

[%emt 00:00:03]

} Kf7 {

[%clk 00:44:10]

} {

[%emt 00:01:04]

} 27. Qc7+ {

[%clk 00:39:34]

} {

[%emt 00:00:41]

} Kg8 {

[%clk 00:39:40]

} {

[%emt 00:05:00]

} 28. Qb8+ {

[%clk 00:39:55]

} {

[%emt 00:00:09]

} 1/2-1/2

[Event "Estonian Chess Championship 2022"]
[Site "Tallinn, Paul Keres Chess House, Estonia"]
[Date "2022.12.13"]
[Round "4.3"]
[White "Medar, Marti"]
[Black "Sirosh, Ilja"]
[Result "0-1"]
[TimeControl "90 minutes for first 40 moves and 15 min. for the rest of the game with 30 sec. increment from move 1"]
[BlackTitle "IM"]
[WhiteFideId "4501870"]
[BlackFideId "4500458"]
[WhiteElo "2069"]
[BlackElo "2386"]

1. c4 {

[%clk 01:30:55]

} {

[%emt 00:00:04]

} e6 {

[%clk 01:30:48]

} {

[%emt 00:00:13]

} 2. Nc3 {

[%clk 01:30:16]

} {

[%emt 00:01:10]

} d5 {

[%clk 01:31:11]

} {

[%emt 00:00:07]

} 3. d4 {

[%clk 01:29:55]

} {

[%emt 00:00:50]

} c5 {

[%clk 01:31:11]

} {

[%emt 00:00:30]

} 4. dxc5 {

[%clk 01:22:21]

} {

[%emt 00:08:04]

} d4 {

[%clk 01:30:00]

} {

[%emt 00:01:42]

} 5. Ne4 {

[%clk 01:22:42]

} {

[%emt 00:00:09]

} f5 {

[%clk 01:10:47]

} {

[%emt 00:19:42]

} 6. Nd6+ {

[%clk 01:20:46]

} {

[%emt 00:02:26]

} Bxd6 {

[%clk 01:11:11]

} {

[%emt 00:00:07]

} 7. cxd6 {

[%clk 01:21:02]

} {

[%emt 00:00:15]

} Qxd6 {

[%clk 01:11:28]

} {

[%emt 00:00:12]

} 8. e3 {

[%clk 01:19:14]

} {

[%emt 00:02:17]

} e5 {

[%clk 00:59:37]

} {

[%emt 00:12:22]

} 9. exd4 {

[%clk 01:11:13]

} {

[%emt 00:08:30]

} exd4 {

[%clk 01:00:02]

} {

[%emt 00:00:06]

} 10. Nf3 {

[%clk 00:56:35]

} {

[%emt 00:15:08]

} Nc6 {

[%clk 01:00:14]

} {

[%emt 00:00:18]

} 11. Be3 {

[%clk 00:55:51]

} {

[%emt 00:01:13]

} Qe7 {

[%clk 00:51:26]

} {

[%emt 00:09:19]

} 12. Nxd4 {

[%clk 00:52:26]

} {

[%emt 00:03:53]

} f4 {

[%clk 00:51:18]

} {

[%emt 00:00:39]

} 13. Nxc6 {

[%clk 00:52:00]

} {

[%emt 00:00:56]

} bxc6 {

[%clk 00:51:26]

} {

[%emt 00:00:22]

} 14. Qf3 {

[%clk 00:50:40]

} {

[%emt 00:01:50]

} fxe3 {

[%clk 00:51:49]

} {

[%emt 00:00:08]

} 15. Qxc6+ {

[%clk 00:50:52]

} {

[%emt 00:00:18]

} Kf7 {

[%clk 00:49:16]

} {

[%emt 00:03:02]

} 16. O-O-O {

[%clk 00:43:22]

} {

[%emt 00:07:59]

} Bb7 {

[%clk 00:45:02]

} {

[%emt 00:04:45]

} 17. Qb5 {

[%clk 00:42:36]

} {

[%emt 00:01:17]

} Nf6 {

[%clk 00:45:18]

} {

[%emt 00:00:13]

} 18. Re1 {

[%clk 00:40:22]

} {

[%emt 00:02:45]

} Rab8 {

[%clk 00:39:49]

} {

[%emt 00:05:59]

} 19. Rxe3 {

[%clk 00:39:20]

} {

[%emt 00:01:32]

} Be4 {

[%clk 00:40:07]

} {

[%emt 00:00:12]

} 20. Qa5 {

[%clk 00:39:08]

} {

[%emt 00:00:41]

} Qb7 {

[%clk 00:34:08]

} {

[%emt 00:06:30]

} 21. b3 {

[%clk 00:33:13]

} {

[%emt 00:06:25]

} Rhd8 {

[%clk 00:30:45]

} {

[%emt 00:03:52]

} 22. f3 {

[%clk 00:32:47]

} {

[%emt 00:00:56]

} Bg6 {

[%clk 00:25:58]

} {

[%emt 00:05:18]

} 23. h4 {

[%clk 00:30:29]

} {

[%emt 00:02:48]

} h5 {

[%clk 00:18:27]

} {

[%emt 00:08:02]

} 24. c5 {

[%clk 00:23:50]

} {

[%emt 00:07:08]

} Qd7 {

[%clk 00:10:17]

} {

[%emt 00:08:40]

} 25. Bc4+ {

[%clk 00:23:33]

} {

[%emt 00:00:47]

} Kf8 {

[%clk 00:10:41]

} {

[%emt 00:00:06]

} 26. Rhe1 {

[%clk 00:19:12]

} {

[%emt 00:04:50]

} Qf5 {

[%clk 00:09:35]

} {

[%emt 00:01:37]

} 27. Re4 {

[%clk 00:01:42]

} {

[%emt 00:18:00]

} Nxe4 {

[%clk 00:09:55]

} {

[%emt 00:00:09]

} 28. Rxe4 {

[%clk 00:01:37]

} {

[%emt 00:00:35]

} Qf6 {

[%clk 00:09:50]

} {

[%emt 00:00:35]

} 0-1